fUST/lending_fUST_20240502
["ID","MTS","AMOUNT","RATE_DAILY","PERIOD"]
[325205052,1714585838891,-1790.56103531,0.00020819,2]
[325205053,1714585838903,-21554.72048013,0.00020819,2]
[325205055,1714585838912,-730.61014924,0.00020913,2]
[325205057,1714585838922,-160.853045,0.00021312,2]
[325205059,1714585838932,-220.96622212,0.00028,2]
[325205061,1714585838942,-692.4,0.00028462,3]
[325205063,1714585838952,-1751.78944315,0.0003,7]
[325205065,1714585838962,-218.0,0.0003,2]
[325205067,1714585838971,-169.82758291,0.00031242,2]
[325205069,1714585838980,-447.2209758,0.00032,4]
[325205071,1714585838990,-466.46671286,0.00034,4]
[325205073,1714585839006,-154.81422293,0.00035,4]
[325205075,1714585839015,-597.98045973,0.00035,2]
[325205077,1714585839025,-214.616747,0.00035616,120]
[325205079,1714585839034,-692.4,0.00035837,3]
[325205081,1714585839045,-2049.08470554,0.00037,2]
[325205083,1714585839055,-10664.09300882,0.00037,5]
[325205084,1714585839064,-321.52307401,0.00038,30]
[325205086,1714585839076,-1108.44070344,0.0003825,4]
[325205089,1714585839087,-611.48397,0.00038831,2]
[325205091,1714585839097,-5000.0,0.00039,4]
[325205092,1714585839108,-5104.97968368,0.0004,4]
[325205095,1714585839118,-252.7509919,0.00041,2]
[325205096,1714585839128,-355.26735292,0.00041075,30]
[325205098,1714585839138,-169.82758291,0.00041671,2]
[325205100,1714585839148,-711.30768702,0.00041745,30]
[325205102,1714585839158,-711.30768702,0.00042782,30]
[325205104,1714585839168,-692.4,0.00043212,3]
[325205106,1714585839177,-611.48398,0.00044123,2]
[325205108,1714585839188,-151.0,0.00045,120]
[325205111,1714585839198,-154.87424562,0.00045052,30]
[325205112,1714585839208,-151.0,0.00045781,120]
[325205114,1714585839218,-151.0,0.00046548,120]
[325205116,1714585839227,-493.0,0.0004689,2]
[325205118,1714585839236,-150.0,0.0004689,2]
[325205120,1714585839246,-151.0,0.00047315,120]
[325205122,1714585839255,-5000.0,0.00048009,2]
[325205124,1714585839264,-151.0,0.00048082,120]
[325205126,1714585839273,-151.0,0.00048849,120]
[325205128,1714585839282,-2520.44707597,0.00049315,120]
[325205130,1714585839292,-611.48397,0.00049416,2]
[325205132,1714585839301,-151.0,0.00049616,120]
[325205134,1714585839311,-10000.0,0.00049666,120]
[325205136,1714585839320,-590.0,0.000497,30]
[325205138,1714585839329,-291.216635,0.00049863,2]
[325205140,1714585839339,-165.846667,0.00049863,2]
[325205142,1714585839347,-493.0,0.0004989,2]
[325205144,1714585839356,-150.0,0.0004989,2]
[325205146,1714585839366,-486.33472313,0.0005,14]
[325205148,1714585839375,-154.81422293,0.0005,30]
[325205150,1714585839384,-960.60835328,0.0005,60]
[325205152,1714585839393,-879.94320873,0.0005,15]
[325205154,1714585839403,-350.0,0.0005,7]
[325205156,1714585839412,-10000.0,0.0005,2]
[325205158,1714585839421,-1000.0,0.0005,120]
[325205160,1714585839431,-520.9,0.0005,7]
[325205162,1714585839440,-500.0,0.0005,7]
[325205164,1714585839449,-254.37250053,0.0005,120]
[325205166,1714585839458,-203.8574549,0.00050137,2]
[325205168,1714585839468,-5000.0,0.0005024,2]
[325205170,1714585839478,-673.02520172,0.00050382,120]
[325205173,1714585839487,-151.0,0.00050384,120]
[325205174,1714585839496,-10815.66,0.00050401,3]
[325205176,1714585839506,-203.8574549,0.00050411,2]
[325205179,1714585839517,-203.8574549,0.00050411,2]
[325205180,1714585839527,-692.4,0.00050588,3]
[325205183,1714585839536,-500.0,0.00050665,120]
[325205185,1714585839547,-447.09056059,0.00050665,120]
[325205186,1714585839557,-248.46809628,0.00050665,120]
[325205189,1714585839567,-10000.0,0.00050666,120]
[325205191,1714585839577,-203.8574549,0.00050849,2]
[325205193,1714585839586,-203.8574549,0.00050849,2]
[325205195,1714585839596,-203.8574549,0.00050849,2]
[325205197,1714585839604,-407.7149098,0.00050849,2]
[325205199,1714585839615,-203.8574549,0.00050959,2]
[325205201,1714585839624,-203.8574549,0.00050959,2]
[325205203,1714585839633,-203.8574549,0.00050959,2]
[325205205,1714585839643,-73471.4340687,0.00051,30]
[325205207,1714585839652,-151.0,0.00051151,120]
[325205209,1714585839660,-150.81901718,0.00051165,2]
[325205210,1714585839669,-100000.0,0.000515,30]
[325205213,1714585839679,-152.90186699,0.00051533,60]
[325205215,1714585839688,-151.0,0.00051918,120]
[325205216,1714585839697,-1031.0,0.00052,4]
[325205218,1714585839707,-2306.18,0.00052,120]
[325205220,1714585839716,-100000.0,0.00052,30]
[325205222,1714585839726,-392.0,0.00052,120]
[325205224,1714585839734,-1581.11,0.00052054,120]
[325205226,1714585839744,-1581.11,0.00052054,120]
[325205228,1714585839752,-1581.11,0.00052054,120]
[325205230,1714585839762,-166.666666,0.00052055,2]
[325205232,1714585839771,-169.82758291,0.000521,2]
[325205234,1714585839781,-190.20461968,0.000521,2]
[325205236,1714585839791,-1581.11,0.00052199,120]
[325205238,1714585839800,-25997.85404254,0.000522,4]
[325205240,1714585839809,-285.56398472,0.000522,2]
[325205242,1714585839820,-10484.0,0.00052345,120]
[325205244,1714585839830,-100000.0,0.000525,30]
[325205246,1714585839839,-2000.0,0.00052676,2]
[325205248,1714585839848,-151.0,0.00052685,120]
[325205250,1714585839857,-999.0,0.00052775,120]
[325205252,1714585839866,-999.0,0.00052775,120]
[325205254,1714585839876,-999.0,0.00052775,120]
[325205256,1714585839885,-999.0,0.00052775,120]
[325205258,1714585839894,-999.0,0.00052775,120]
[325205260,1714585839904,-1581.11,0.00052775,120]
[325205262,1714585839913,-1581.11,0.00052775,120]
[325205264,1714585839923,-88888.0,0.00052776,120]
[325205266,1714585839932,-190.20461967,0.00052776,2]
[325205268,1714585839941,-1581.11,0.00052859,120]
[325205270,1714585839951,-1727.71143665,0.00052875,61]
[325205272,1714585839960,-1581.11,0.00052875,120]
[325205274,1714585839969,-1581.11,0.00052875,120]
[325205276,1714585839980,-1581.11,0.00052875,120]
[325205278,1714585839989,-1581.11,0.00052875,120]
[325205280,1714585840001,-1581.11,0.00052875,120]
[325205282,1714585840012,-1581.11,0.00052875,120]
[325205284,1714585840022,-1581.11,0.00052875,120]
[325205286,1714585840032,-1581.11,0.00052875,120]
[325205288,1714585840041,-1581.11,0.00052875,120]
[325205290,1714585840052,-1581.11,0.00052875,120]
[325205292,1714585840061,-1581.11,0.00052875,120]
[325205294,1714585840074,-1581.11,0.00052875,120]
[325205296,1714585840085,-1581.11,0.00052875,120]
[325205298,1714585840094,-1581.11,0.00052875,120]
[325205300,1714585840103,-1581.11,0.00052875,120]
[325205302,1714585840112,-1581.11,0.00052875,120]
[325205303,1714585840121,-1581.13253733,0.00052875,120]
[325205306,1714585840131,-408.04024175,0.00052876,120]
[325205308,1714585840140,-500.0,0.00052876,120]
[325205310,1714585840149,-500.0,0.00052876,120]
[325205311,1714585840158,-500.0,0.00052876,120]
[325205313,1714585840167,-500.0,0.00052876,120]
[325205315,1714585840177,-154.79876161,0.00052876,120]
[325205317,1714585840186,-162.529464,0.00052876,7]
[325205319,1714585840195,-500.0,0.00052876,120]
[325205321,1714585840204,-500.0,0.00052876,120]
[325205323,1714585840213,-1073.97,0.00052876,120]
[325205325,1714585840222,-500.0,0.00052876,120]
[325205327,1714585840232,-500.0,0.00052876,120]
[325205329,1714585840242,-500.0,0.00052876,120]
[325205331,1714585840251,-500.0,0.00052876,7]
[325205333,1714585840260,-500.0,0.00052876,120]
[325205335,1714585840269,-848.19,0.00052876,120]
[325205337,1714585840279,-500.0,0.00052876,120]
[325205339,1714585840288,-500.0,0.00052876,120]
[325205341,1714585840297,-500.0,0.00052876,120]
[325205343,1714585840306,-500.0,0.00052876,120]
[325205345,1714585840315,-874.24,0.00052876,120]
[325205347,1714585840329,-500.0,0.00052876,3]
[325205350,1714585840339,-500.0,0.00052876,120]
[325205352,1714585840348,-500.0,0.00052876,120]
[325205354,1714585840357,-612.01089784,0.00052876,120]
[325205355,1714585840367,-500.0,0.00052876,120]
[325205357,1714585840376,-500.0,0.00052876,120]
[325205359,1714585840385,-500.0,0.00052876,120]
[325205361,1714585840394,-500.0,0.00052876,120]
[325205363,1714585840403,-500.0,0.00052876,120]
[325205365,1714585840412,-500.0,0.00052876,120]
[325205367,1714585840421,-151.0,0.00052876,7]
[325205369,1714585840430,-151.0,0.00052876,7]
[325205371,1714585840439,-500.0,0.00052876,120]
[325205373,1714585840448,-151.0,0.00052876,7]
[325205375,1714585840458,-151.0,0.00052876,7]
[325205377,1714585840467,-151.0,0.00052876,7]
[325205379,1714585840476,-151.0,0.00052876,7]
[325205381,1714585840486,-151.0,0.00052876,7]
[325205383,1714585840495,-1274.03,0.00052876,120]
[325205385,1714585840505,-298.059141,0.00052876,7]
[325205387,1714585840515,-523.06,0.00052876,120]
[325205389,1714585840525,-775.37,0.00052876,120]
[325205391,1714585840534,-500.0,0.00052876,120]
[325205393,1714585840543,-500.0,0.00052876,120]
[325205395,1714585840553,-781.51,0.00052876,120]
[325205398,1714585840562,-600.0,0.00052876,120]
[325205399,1714585840573,-500.0,0.00052876,120]
[325205401,1714585840582,-500.0,0.00052876,120]
[325205403,1714585840591,-500.0,0.00052876,120]
[325205406,1714585840601,-500.0,0.00052876,120]
[325205407,1714585840611,-565.83795188,0.00052876,120]
[325205410,1714585840621,-505.30029406,0.00052876,120]
[325205411,1714585840630,-500.0,0.00052876,120]
[325205414,1714585840646,-500.0,0.00052876,120]
[325205416,1714585840656,-500.0,0.00052876,120]
[325205418,1714585840665,-500.0,0.00052876,120]
[325205420,1714585840674,-500.0,0.00052876,120]
[325205422,1714585840683,-500.0,0.00052876,120]
[325205424,1714585840692,-500.0,0.00052876,120]
[325205426,1714585840701,-500.0,0.00052876,120]
[325205428,1714585840711,-500.0,0.00052876,120]
[325205429,1714585840720,-500.0,0.00052876,120]
[325205431,1714585840729,-1107.24,0.00052876,120]
[325205434,1714585840738,-500.0,0.00052876,120]
[325205435,1714585840747,-500.0,0.00052876,120]
[325205458,1714585840945,-500.0,0.00052876,120]
[325205460,1714585840956,-500.0,0.00052876,120]
[325205462,1714585840966,-512.92933634,0.00052876,120]
[325205465,1714585840976,-500.0,0.00052876,120]
[325205466,1714585840986,-500.0,0.00052876,120]
[325205468,1714585840997,-548.5,0.00052876,120]
[325205471,1714585841010,-515.08,0.00052876,120]
[325205473,1714585841019,-500.0,0.00052876,120]
[325205475,1714585841029,-500.0,0.00052876,120]
[325205476,1714585841040,-500.0,0.00052876,120]
[325205479,1714585841049,-500.0,0.00052876,120]
[325205480,1714585841059,-505.32168027,0.00052876,120]
[325205482,1714585841070,-500.0,0.00052876,120]
[325205484,1714585841079,-951.34,0.00052876,2]
[325205486,1714585841090,-500.0,0.00052876,120]
[325205488,1714585841099,-460.30168021,0.00052876,120]
[325205491,1714585841109,-797.88,0.00052876,120]
[325205493,1714585841118,-912.09,0.00052876,120]
[325205494,1714585841127,-463.93292326,0.00052876,120]
[325205497,1714585841137,-700.99,0.00052876,120]
[325205499,1714585841146,-500.0,0.00052876,120]
[325205501,1714585841155,-500.0,0.00052876,120]
[325205503,1714585841164,-500.0,0.00052876,120]
[325205504,1714585841173,-500.0,0.00052876,20]
[325205507,1714585841183,-595.93407744,0.00052876,120]
[325205509,1714585841192,-500.0,0.00052876,120]
[325205511,1714585841202,-486.96603842,0.00052876,120]
[325205513,1714585841212,-228.9410275,0.00052876,120]
[325205514,1714585841221,-500.0,0.00052876,120]
[325205515,1714585841230,-151.0,0.00052876,120]
[325205516,1714585841239,-500.0,0.00052876,120]
[325205517,1714585841248,-500.0,0.00052876,120]
[325205518,1714585841257,-500.0,0.00052876,120]
[325205519,1714585841266,-500.0,0.00052876,120]
[325205520,1714585841275,-500.0,0.00052876,120]
[325205521,1714585841284,-500.0,0.00052876,120]
[325205522,1714585841293,-500.0,0.00052876,120]
[325205523,1714585841302,-500.0,0.00052876,120]
[325205524,1714585841311,-500.0,0.00052876,120]
[325205525,1714585841320,-183.54657057,0.00052876,120]
[325205526,1714585841330,-529.41612635,0.00052876,120]
[325205527,1714585841339,-500.0,0.00052876,120]
[325205528,1714585841348,-500.0,0.00052876,120]
[325205529,1714585841357,-500.0,0.00052876,120]
[325205530,1714585841366,-500.0,0.00052876,120]
[325205531,1714585841375,-500.0,0.00052876,120]
[325205532,1714585841384,-500.0,0.00052876,120]
[325205533,1714585841394,-500.0,0.00052876,120]
[325205534,1714585841403,-500.0,0.00052876,120]
[325205535,1714585841412,-500.0,0.00052876,120]
[325205536,1714585841422,-500.0,0.00052876,120]
[325205537,1714585841430,-418.10804058,0.00052876,120]
[325205538,1714585841439,-500.0,0.00052876,120]
[325205539,1714585841449,-500.0,0.00052876,120]
[325205540,1714585841458,-481.78261855,0.00052876,120]
[325205541,1714585841467,-500.0,0.00052876,120]
[325205542,1714585841476,-500.0,0.00052876,120]
[325205543,1714585841486,-500.0,0.00052876,120]
[325205544,1714585841495,-1147.1,0.00052876,120]
[325205545,1714585841504,-151.0,0.00052876,7]
[325205546,1714585841514,-151.0,0.00052876,7]
[325205547,1714585841523,-501.62757547,0.00052876,120]
[325205548,1714585841533,-151.0,0.00052876,7]
[325205549,1714585841542,-500.0,0.00052876,120]
[325205550,1714585841551,-500.23716366,0.00052876,120]
[325205551,1714585841560,-500.0,0.00052876,7]
[325205552,1714585841570,-282.03850126,0.00052876,120]
[325205553,1714585841579,-1156.16,0.00052876,120]
[325205554,1714585841588,-500.0,0.00052876,120]
[325205555,1714585841597,-500.0,0.00052876,120]
[325205556,1714585841607,-500.0,0.00052876,120]
[325205557,1714585841617,-500.0,0.00052876,120]
[325205558,1714585841626,-500.0,0.00052876,120]
[325205559,1714585841635,-500.0,0.00052876,120]
[325205560,1714585841644,-500.0,0.00052876,120]
[325205561,1714585841654,-500.0,0.00052876,120]
[325205562,1714585841663,-500.0,0.00052876,120]
[325205563,1714585841673,-500.0,0.00052876,5]
[325205564,1714585841682,-500.0,0.00052876,120]
[325205565,1714585841691,-500.0,0.00052876,120]
[325205566,1714585841701,-500.0,0.00052876,120]
[325205567,1714585841711,-261.16178485,0.00052876,120]
[325205568,1714585841720,-500.0,0.00052876,120]
[325205569,1714585841730,-500.0,0.00052876,120]
[325205570,1714585841739,-500.0,0.00052876,120]
[325205571,1714585841749,-500.0,0.00052876,120]
[325205572,1714585841758,-500.0,0.00052876,120]
[325205573,1714585841767,-500.0,0.00052876,120]
[325205574,1714585841776,-500.0,0.00052876,120]
[325205576,1714585841785,-863.59,0.00052876,120]
[325205577,1714585841794,-500.0,0.00052876,120]
[325205579,1714585841804,-500.0,0.00052876,120]
[325205580,1714585841813,-735.78,0.00052876,120]
[325205582,1714585841824,-500.0,0.00052876,120]
[325205584,1714585841832,-500.0,0.00052876,120]
[325205586,1714585841842,-500.0,0.00052876,120]
[325205588,1714585841851,-500.0,0.00052876,120]
[325205590,1714585841860,-500.0,0.00052876,120]
[325205592,1714585841869,-506.23410785,0.00052876,120]
[325205594,1714585841878,-269.710465,0.00052876,7]
[325205596,1714585841888,-269.710465,0.00052876,7]
[325205597,1714585841897,-269.710465,0.00052876,7]
[325205599,1714585841907,-500.0,0.00052876,120]
[325205601,1714585841916,-269.710465,0.00052876,7]
[325205603,1714585841925,-269.710465,0.00052876,7]
[325205606,1714585841935,-269.710465,0.00052876,7]
[325205607,1714585841944,-269.710465,0.00052876,7]
[325205609,1714585841953,-269.710465,0.00052876,7]
[325205611,1714585841962,-269.710465,0.00052876,7]
[325205613,1714585841971,-500.0,0.00052876,120]
[325205616,1714585841980,-501.23310096,0.00052876,120]
[325205618,1714585841990,-500.0,0.00052876,120]
[325205620,1714585842004,-500.0,0.00052876,120]
[325205622,1714585842013,-500.0,0.00052876,120]
[325205624,1714585842022,-500.0,0.00052876,120]
[325205626,1714585842032,-500.0,0.00052876,120]
[325205628,1714585842042,-500.0,0.00052876,120]
[325205630,1714585842052,-500.0,0.00052876,120]
[325205632,1714585842061,-399.095341,0.00052876,7]
[325205634,1714585842071,-399.095341,0.00052876,7]
[325205636,1714585842083,-399.095341,0.00052876,7]
[325205638,1714585842092,-399.095341,0.00052876,7]
[325205639,1714585842101,-399.095341,0.00052876,7]
[325205641,1714585842110,-500.0,0.00052876,120]
[325205643,1714585842119,-399.095341,0.00052876,7]
[325205645,1714585842128,-772.53,0.00052876,120]
[325205647,1714585842137,-399.095341,0.00052876,7]
[325205649,1714585842147,-399.095341,0.00052876,7]
[325205651,1714585842156,-399.095341,0.00052876,7]
[325205654,1714585842166,-399.095341,0.00052876,7]
[325205656,1714585842175,-399.095341,0.00052876,7]
[325205658,1714585842184,-399.095341,0.00052876,7]
[325205659,1714585842194,-399.095341,0.00052876,7]
[325205661,1714585842204,-500.0,0.00052876,120]
[325205663,1714585842213,-399.095341,0.00052876,7]
[325205665,1714585842222,-399.095341,0.00052876,7]
[325205667,1714585842231,-399.095341,0.00052876,7]
[325205669,1714585842241,-399.095341,0.00052876,7]
[325205671,1714585842250,-399.095341,0.00052876,7]
[325205674,1714585842260,-500.0,0.00052876,120]
[325205676,1714585842268,-500.0,0.00052876,120]
[325205678,1714585842278,-511.91,0.00052876,120]
[325205679,1714585842287,-500.0,0.00052876,120]
[325205681,1714585842297,-500.0,0.00052876,120]
[325205683,1714585842306,-500.0,0.00052876,120]
[325205686,1714585842315,-916.2,0.00052876,120]
[325205687,1714585842327,-500.0,0.00052876,120]
[325205689,1714585842336,-151.0,0.00052876,7]
[325205690,1714585842345,-151.0,0.00052876,7]
[325205691,1714585842354,-151.0,0.00052876,7]
[325205692,1714585842363,-517.89564404,0.00052876,120]
[325205693,1714585842372,-151.0,0.00052876,7]
[325205694,1714585842381,-151.0,0.00052876,7]
[325205695,1714585842391,-151.0,0.00052876,7]
[325205696,1714585842401,-151.0,0.00052876,7]
[325205697,1714585842410,-151.0,0.00052876,7]
[325205698,1714585842420,-151.0,0.00052876,7]
[325205699,1714585842429,-151.0,0.00052876,7]
[325205700,1714585842438,-151.0,0.00052876,7]
[325205701,1714585842447,-151.0,0.00052876,7]
[325205702,1714585842456,-151.0,0.00052876,7]
[325205703,1714585842466,-151.0,0.00052876,7]
[325205704,1714585842475,-151.0,0.00052876,7]
[325205705,1714585842485,-151.0,0.00052876,7]
[325205706,1714585842495,-231.757237,0.00052876,7]
[325205707,1714585842505,-500.0,0.00052876,120]
[325205708,1714585842516,-500.0,0.00052876,120]
[325205709,1714585842526,-500.0,0.00052876,120]
[325205710,1714585842536,-500.0,0.00052876,30]
[325205711,1714585842546,-500.0,0.00052876,120]
[325205712,1714585842555,-500.0,0.00052876,120]
[325205713,1714585842565,-500.0,0.00052876,120]
[325205714,1714585842575,-197.665273,0.00052876,7]
[325205715,1714585842583,-197.665273,0.00052876,7]
[325205716,1714585842593,-197.665273,0.00052876,7]
[325205718,1714585842603,-197.665273,0.00052876,7]
[325205719,1714585842612,-197.665273,0.00052876,7]
[325205721,1714585842621,-500.0,0.00052876,120]
[325205723,1714585842630,-197.665273,0.00052876,7]
[325205725,1714585842639,-197.665273,0.00052876,7]
[325205727,1714585842648,-197.665273,0.00052876,7]
[325205729,1714585842658,-197.665273,0.00052876,7]
[325205731,1714585842667,-197.665273,0.00052876,7]
[325205733,1714585842676,-197.665273,0.00052876,7]
[325205735,1714585842686,-197.665273,0.00052876,7]
[325205737,1714585842696,-500.0,0.00052876,120]
[325205739,1714585842705,-197.665273,0.00052876,7]
[325205741,1714585842714,-514.42,0.00052876,120]
[325205743,1714585842723,-197.66527,0.00052876,7]
[325205746,1714585842733,-500.96075011,0.00052876,120]
[325205747,1714585842742,-500.0,0.00052876,120]
[325205749,1714585842751,-500.0,0.00052876,120]
[325205751,1714585842760,-500.0,0.00052876,120]
[325205754,1714585842770,-500.0,0.00052876,120]
[325205756,1714585842779,-156.331698,0.00052876,7]
[325205757,1714585842788,-156.331698,0.00052876,7]
[325205759,1714585842798,-156.331698,0.00052876,7]
[325205761,1714585842807,-156.331698,0.00052876,7]
[325205763,1714585842816,-156.331698,0.00052876,7]
[325205766,1714585842827,-156.331698,0.00052876,7]
[325205768,1714585842837,-156.331698,0.00052876,7]
[325205769,1714585842846,-156.331698,0.00052876,7]
[325205772,1714585842855,-156.331698,0.00052876,7]
[325205774,1714585842864,-156.331698,0.00052876,7]
[325205775,1714585842874,-156.331698,0.00052876,7]
[325205777,1714585842883,-154.78330338,0.00052876,2]
[325205779,1714585842892,-505.94488032,0.00052876,120]
[325205781,1714585842901,-156.331698,0.00052876,7]
[325205783,1714585842911,-156.331698,0.00052876,7]
[325205785,1714585842920,-156.331698,0.00052876,7]
[325205788,1714585842930,-156.331698,0.00052876,7]
[325205790,1714585842940,-156.331698,0.00052876,7]
[325205793,1714585842949,-156.331698,0.00052876,7]
[325205795,1714585842959,-500.0,0.00052876,120]
[325205798,1714585842968,-156.331698,0.00052876,7]
[325205799,1714585842978,-2237.61,0.00052876,120]
[325205801,1714585842988,-156.331698,0.00052876,7]
[325205803,1714585842998,-156.331706,0.00052876,7]
[325205806,1714585843012,-500.0,0.00052876,120]
[325205809,1714585843022,-500.0,0.00052876,120]
[325205812,1714585843033,-500.0,0.00052876,2]
[325205815,1714585843044,-500.0,0.00052876,120]
[325205818,1714585843054,-151.0,0.00052876,7]
[325205821,1714585843064,-151.0,0.00052876,7]
[325205824,1714585843074,-151.0,0.00052876,7]
[325205827,1714585843085,-151.0,0.00052876,7]
[325205830,1714585843095,-151.0,0.00052876,7]
[325205833,1714585843104,-965.17,0.00052876,120]
[325205835,1714585843114,-500.0,0.00052876,120]
[325205837,1714585843123,-151.0,0.00052876,7]
[325205839,1714585843133,-151.0,0.00052876,7]
[325205841,1714585843141,-151.0,0.00052876,7]
[325205843,1714585843150,-151.0,0.00052876,7]
[325205844,1714585843159,-151.0,0.00052876,7]
[325205847,1714585843168,-151.0,0.00052876,7]
[325205849,1714585843178,-500.0,0.00052876,120]
[325205852,1714585843186,-151.0,0.00052876,7]
[325205855,1714585843195,-500.0,0.00052876,120]
[325205857,1714585843204,-151.0,0.00052876,7]
[325205859,1714585843214,-151.0,0.00052876,7]
[325205863,1714585843223,-500.0,0.00052876,120]
[325205866,1714585843232,-151.0,0.00052876,7]
[325205869,1714585843241,-151.0,0.00052876,7]
[325205872,1714585843251,-500.0,0.00052876,120]
[325205874,1714585843260,-1247.87,0.00052876,120]
[325205876,1714585843269,-301.424571,0.00052876,7]
[325205879,1714585843278,-500.0,0.00052876,30]
[325205882,1714585843287,-625.13,0.00052876,120]
[325205885,1714585843296,-500.0,0.00052876,120]
[325205886,1714585843305,-585.1803234,0.00052876,120]
[325205889,1714585843315,-509.7198587,0.00052876,120]
[325205890,1714585843326,-500.0,0.00052876,120]
[325205892,1714585843335,-500.0,0.00052876,120]
[325205894,1714585843344,-500.0,0.00052876,120]
[325205896,1714585843353,-500.0,0.00052876,120]
[325205898,1714585843363,-601.05,0.00052876,120]
[325205900,1714585843372,-500.0,0.00052876,120]
[325205902,1714585843381,-500.0,0.00052876,120]
[325205904,1714585843391,-500.0,0.00052876,120]
[325205906,1714585843400,-619.74279753,0.00052876,120]
[325205909,1714585843410,-500.0,0.00052876,120]
[325205911,1714585843419,-911.27,0.00052876,120]
[325205912,1714585843428,-542.5372522,0.00052876,120]
[325205914,1714585843438,-500.0,0.00052876,120]
[325205917,1714585843447,-551.02,0.00052876,120]
[325205918,1714585843456,-500.0,0.00052876,120]
[325205920,1714585843465,-500.0,0.00052876,120]
[325205922,1714585843475,-500.0,0.00052876,120]
[325205924,1714585843484,-180.230336,0.00052876,7]
[325205926,1714585843493,-180.230336,0.00052876,7]
[325205928,1714585843503,-180.230336,0.00052876,7]
[325205931,1714585843513,-180.230336,0.00052876,7]
[325205933,1714585843523,-180.230336,0.00052876,7]
[325205935,1714585843532,-180.230336,0.00052876,7]
[325205937,1714585843542,-180.230336,0.00052876,7]
[325205939,1714585843551,-180.230336,0.00052876,7]
[325205941,1714585843561,-180.230336,0.00052876,7]
[325205942,1714585843572,-180.230336,0.00052876,7]
[325205944,1714585843581,-500.70477529,0.00052876,120]
[325205946,1714585843590,-180.230336,0.00052876,7]
[325205948,1714585843599,-180.230336,0.00052876,7]
[325205950,1714585843609,-180.230336,0.00052876,7]
[325205952,1714585843618,-894.54,0.00052876,120]
[325205954,1714585843627,-180.230336,0.00052876,7]
[325205956,1714585843636,-180.230336,0.00052876,7]
[325205958,1714585843645,-719.83,0.00052876,120]
[325205960,1714585843655,-180.230336,0.00052876,7]
[325205962,1714585843665,-180.230336,0.00052876,7]
[325205964,1714585843674,-180.230336,0.00052876,7]
[325205966,1714585843684,-180.230336,0.00052876,7]
[325205968,1714585843694,-180.230329,0.00052876,7]
[325205970,1714585843703,-500.0,0.00052876,120]
[325205972,1714585843713,-1140.05,0.00052876,120]
[325205974,1714585843723,-500.0,0.00052876,120]
[325205976,1714585843740,-675.55,0.00052876,120]
[325205977,1714585843760,-500.0,0.00052876,120]
[325205979,1714585843778,-500.0,0.00052876,120]
[325205980,1714585843787,-500.0,0.00052876,120]
[325205981,1714585843796,-500.0,0.00052876,120]
[325205982,1714585843805,-160.06376333,0.00052876,2]
[325205983,1714585843814,-500.0,0.00052876,120]
[325205984,1714585843825,-500.0,0.00052876,120]
[325205985,1714585843834,-500.0,0.00052876,120]
[325205986,1714585843843,-500.0,0.00052876,20]
[325205988,1714585843852,-151.0,0.00052876,7]
[325205989,1714585843862,-151.0,0.00052876,7]